fUSD/lending_fUSD_20260605
["ID","MTS","AMOUNT","RATE_DAILY","PERIOD"]
[424205929,1780665086000,-500.0,0.00013698,2]
[424205916,1780665086000,-500.0,0.00013698,2]
[424205918,1780665086000,-500.0,0.00013698,2]
[424205910,1780665086000,-500.0,0.00013698,2]
[424205913,1780665086000,-500.0,0.00013698,2]
[424205914,1780665086000,-500.0,0.00013698,2]
[424205915,1780665086000,-500.0,0.00013698,2]
[424205911,1780665086000,-500.0,0.00013698,2]
[424205922,1780665086000,-500.0,0.00013698,2]
[424205921,1780665086000,-500.0,0.00013698,2]
[424205928,1780665086000,-500.0,0.00013698,2]
[424205932,1780665086000,-320.49940694,0.00013698,2]
[424205924,1780665086000,-500.0,0.00013698,2]
[424205930,1780665086000,-500.0,0.00013698,2]
[424205950,1780665086000,-500.0,0.00013698,2]
[424205949,1780665086000,-500.0,0.00013698,2]
[424205947,1780665086000,-500.0,0.00013698,2]
[424205951,1780665086000,-500.0,0.00013698,2]
[424205948,1780665086000,-500.0,0.00013698,2]
[424205944,1780665086000,-500.0,0.00013698,2]
[424205946,1780665086000,-500.0,0.00013698,2]
[424205945,1780665086000,-500.0,0.00013698,2]
[424205942,1780665086000,-500.0,0.00013698,2]
[424205937,1780665086000,-500.0,0.00013698,2]
[424205938,1780665086000,-500.0,0.00013698,2]
[424205943,1780665086000,-500.0,0.00013698,2]
[424205934,1780665086000,-500.0,0.00013698,2]
[424205936,1780665086000,-205.25819266,0.00013698,2]
[424205935,1780665086000,-500.0,0.00013698,2]
[424205933,1780665086000,-500.0,0.00013698,2]
[424205940,1780665086000,-500.0,0.00013698,2]
[424205941,1780665086000,-500.0,0.00013698,2]
[424205939,1780665086000,-500.0,0.00013698,2]
[424205982,1780665087000,-500.0,0.00013698,2]
[424205964,1780665087000,-500.0,0.00013698,2]
[424205970,1780665087000,-500.0,0.00013698,2]
[424205979,1780665087000,-249.3098753,0.00013698,2]
[424205977,1780665087000,-500.0,0.00013698,2]
[424205980,1780665087000,-500.0,0.00013698,2]
[424205981,1780665087000,-500.0,0.00013698,2]
[424205967,1780665087000,-500.0,0.00013698,2]
[424205963,1780665087000,-500.0,0.00013698,2]
[424205958,1780665087000,-176.897767,0.00013698,2]
[424205961,1780665087000,-500.0,0.00013698,2]
[424205959,1780665087000,-176.897767,0.00013698,2]
[424205960,1780665087000,-176.897767,0.00013698,2]
[424205957,1780665087000,-176.897767,0.00013698,2]
[424205955,1780665087000,-500.0,0.00013698,2]
[424205954,1780665087000,-500.0,0.00013698,2]
[424205952,1780665087000,-500.0,0.00013698,2]
[424205953,1780665087000,-500.0,0.00013698,2]
[424205974,1780665087000,-500.0,0.00013698,2]
[424205962,1780665087000,-500.0,0.00013698,2]
[424205956,1780665087000,-322.86127567,0.00013698,2]
[424205966,1780665087000,-500.0,0.00013698,2]
[424205969,1780665087000,-173.2792133,0.00013698,2]
[424205994,1780665087000,-500.0,0.00013698,2]
[424205993,1780665087000,-500.0,0.00013698,2]
[424205992,1780665087000,-500.0,0.00013698,2]
[424205989,1780665087000,-500.0,0.00013698,2]
[424205991,1780665087000,-500.0,0.00013698,2]
[424205990,1780665087000,-500.0,0.00013698,2]
[424205988,1780665087000,-500.0,0.00013698,2]
[424205987,1780665087000,-500.0,0.00013698,2]
[424205986,1780665087000,-500.0,0.00013698,2]
[424205965,1780665087000,-562.28097781,0.00013698,2]
[424205983,1780665087000,-500.0,0.00013698,2]
[424205984,1780665087000,-500.0,0.00013698,2]
[424205971,1780665087000,-500.0,0.00013698,2]
[424205973,1780665087000,-500.0,0.00013698,2]
[424205978,1780665087000,-500.0,0.00013698,2]
[424205976,1780665087000,-500.0,0.00013698,2]
[424205968,1780665087000,-500.0,0.00013698,2]
[424205972,1780665087000,-236.85083914,0.00013698,2]
[424205975,1780665087000,-500.0,0.00013698,2]
[424205985,1780665087000,-500.0,0.00013698,2]
[424206002,1780665088000,-500.0,0.00013698,2]
[424206007,1780665088000,-305.0246088,0.00013698,2]
[424206009,1780665088000,-500.0,0.00013698,2]
[424205997,1780665088000,-500.0,0.00013698,2]
[424206019,1780665088000,-500.0,0.00013698,2]
[424206013,1780665088000,-500.0,0.00013698,2]
[424206017,1780665088000,-500.0,0.00013698,2]
[424206020,1780665088000,-500.0,0.00013698,2]
[424205999,1780665088000,-500.0,0.00013698,2]
[424206018,1780665088000,-500.0,0.00013698,2]
[424206005,1780665088000,-500.0,0.00013698,2]
[424205995,1780665088000,-500.0,0.00013698,2]
[424206000,1780665088000,-500.0,0.00013698,2]
[424206001,1780665088000,-500.0,0.00013698,2]
[424205998,1780665088000,-500.0,0.00013698,2]
[424206006,1780665088000,-500.0,0.00013698,2]
[424205996,1780665088000,-241.38210982,0.00013698,2]
[424206016,1780665088000,-500.0,0.00013698,2]
[424206012,1780665088000,-500.0,0.00013698,2]
[424206003,1780665088000,-500.0,0.00013698,2]
[424206014,1780665088000,-500.0,0.00013698,2]
[424206021,1780665088000,-500.0,0.00013698,2]
[424206015,1780665088000,-318.22,0.00013698,2]
[424206008,1780665088000,-188.77839435,0.00013698,2]
[424206004,1780665088000,-500.0,0.00013698,2]
[424206011,1780665088000,-500.0,0.00013698,2]
[424206010,1780665088000,-500.92892987,0.00013698,2]
[424206026,1780665088000,-500.0,0.00013698,2]
[424206038,1780665088000,-500.0,0.00013698,2]
[424206045,1780665088000,-500.0,0.00013698,2]
[424206048,1780665088000,-500.0,0.00013698,2]
[424206025,1780665088000,-500.0,0.00013698,2]
[424206043,1780665088000,-500.0,0.00013698,2]
[424206047,1780665088000,-500.0,0.00013698,2]
[424206042,1780665088000,-500.0,0.00013698,2]
[424206050,1780665088000,-635.5,0.00013698,2]
[424206040,1780665088000,-500.0,0.00013698,2]
[424206049,1780665088000,-346.33440715,0.00013698,2]
[424206044,1780665088000,-500.0,0.00013698,2]
[424206041,1780665088000,-500.0,0.00013698,2]
[424206039,1780665088000,-500.0,0.00013698,2]
[424206031,1780665088000,-500.0,0.00013698,2]
[424206046,1780665088000,-500.0,0.00013698,2]
[424206037,1780665088000,-500.0,0.00013698,2]
[424206022,1780665088000,-500.0,0.00013698,2]
[424206034,1780665088000,-500.0,0.00013698,2]
[424206036,1780665088000,-500.0,0.00013698,2]
[424206023,1780665088000,-500.0,0.00013698,2]
[424206035,1780665088000,-500.0,0.00013698,2]
[424206029,1780665088000,-500.0,0.00013698,2]
[424206032,1780665088000,-500.0,0.00013698,2]
[424206024,1780665088000,-500.0,0.00013698,2]
[424206027,1780665088000,-153.62,0.00013698,2]
[424206030,1780665088000,-500.0,0.00013698,2]
[424206028,1780665088000,-500.0,0.00013698,2]
[424206033,1780665088000,-500.0,0.00013698,2]
[424206065,1780665089000,-151.0,0.00013699,2]
[424206069,1780665089000,-1023.63214271,0.00013699,5]
[424206067,1780665089000,-155.0,0.00013699,2]
[424206068,1780665089000,-1023.63214271,0.00013699,5]
[424206070,1780665089000,-1023.63214271,0.00013699,5]
[424206066,1780665089000,-162.178092,0.00013699,2]
[424206064,1780665089000,-151.0,0.00013699,2]
[424206062,1780665089000,-151.0,0.00013699,2]
[424206063,1780665089000,-151.0,0.00013699,2]
[424206054,1780665089000,-166.66,0.00013699,2]
[424206060,1780665089000,-152.346654,0.00013699,2]
[424206059,1780665089000,-151.0,0.00013699,2]
[424206058,1780665089000,-16502.44,0.00013699,2]
[424206057,1780665089000,-200.0,0.00013699,2]
[424206056,1780665089000,-166.66,0.00013699,2]
[424206052,1780665089000,-635.5,0.00013698,2]
[424206055,1780665089000,-6132.12,0.00013699,2]
[424206053,1780665089000,-635.5,0.00013698,2]
[424206051,1780665089000,-635.5,0.00013698,2]
[424206061,1780665089000,-151.0,0.00013699,2]
[424206074,1780665089000,-151.0,0.00013699,2]
[424206085,1780665089000,-736.0,0.00013699,2]
[424206073,1780665089000,-151.0,0.00013699,2]
[424206072,1780665089000,-151.0,0.00013699,2]
[424206090,1780665089000,-736.0,0.00013699,2]
[424206089,1780665089000,-736.0,0.00013699,2]
[424206088,1780665089000,-736.0,0.00013699,2]
[424206093,1780665089000,-736.0,0.00013699,2]
[424206094,1780665089000,-736.0,0.00013699,2]
[424206091,1780665089000,-736.0,0.00013699,2]
[424206087,1780665089000,-736.0,0.00013699,2]
[424206084,1780665089000,-736.0,0.00013699,2]
[424206078,1780665089000,-736.0,0.00013699,2]
[424206092,1780665089000,-736.0,0.00013699,2]
[424206076,1780665089000,-736.0,0.00013699,2]
[424206083,1780665089000,-736.0,0.00013699,2]
[424206075,1780665089000,-736.0,0.00013699,2]
[424206080,1780665089000,-736.0,0.00013699,2]
[424206086,1780665089000,-736.0,0.00013699,2]
[424206071,1780665089000,-1023.63214271,0.00013699,5]
[424206082,1780665089000,-736.0,0.00013699,2]
[424206077,1780665089000,-736.0,0.00013699,2]
[424206081,1780665089000,-736.0,0.00013699,2]
[424206079,1780665089000,-736.0,0.00013699,2]
[424206104,1780665090000,-765.0210439,0.00013699,2]
[424206117,1780665090000,-470.65922505,0.00013714,2]
[424206119,1780665090000,-470.65922505,0.00013729,2]
[424206114,1780665090000,-150.0,0.000137,2]
[424206111,1780665090000,-765.0210439,0.00013699,2]
[424206110,1780665090000,-765.0210439,0.00013699,2]
[424206112,1780665090000,-470.65922505,0.000137,2]
[424206109,1780665090000,-765.0210439,0.00013699,2]
[424206108,1780665090000,-765.0210439,0.00013699,2]
[424206105,1780665090000,-765.0210439,0.00013699,2]
[424206095,1780665090000,-736.0,0.00013699,2]
[424206107,1780665090000,-765.0210439,0.00013699,2]
[424206103,1780665090000,-765.0210439,0.00013699,2]
[424206100,1780665090000,-765.0210439,0.00013699,2]
[424206102,1780665090000,-765.0210439,0.00013699,2]
[424206101,1780665090000,-765.0210439,0.00013699,2]
[424206099,1780665090000,-765.0210439,0.00013699,2]
[424206096,1780665090000,-736.0,0.00013699,2]
[424206098,1780665090000,-739.46159652,0.00013699,2]
[424206097,1780665090000,-736.0,0.00013699,2]
[424206113,1780665090000,-150.0,0.000137,2]
[424206106,1780665090000,-765.0210439,0.00013699,2]
[424206115,1780665090000,-277.92638462,0.000137,2]
[424206120,1780665090000,-470.65922505,0.00013743,2]
[424206121,1780665090000,-150.0,0.00013744,2]
[424206116,1780665090000,-1406.99,0.000137,2]
[424206140,1780665090000,-470.65922505,0.00013858,2]
[424206139,1780665090000,-151.0,0.00013848,2]
[424206142,1780665090000,-470.65922505,0.00013872,2]
[424206141,1780665090000,-150.0,0.00013867,2]
[424206128,1780665090000,-304.23217184,0.00013782,2]
[424206127,1780665090000,-155.0,0.00013782,2]
[424206138,1780665090000,-152.0,0.00013848,2]
[424206133,1780665090000,-2684.06312873,0.00013835,2]
[424206129,1780665090000,-470.65922505,0.00013786,2]
[424206137,1780665090000,-1548.0,0.00013848,2]
[424206132,1780665090000,-470.65922505,0.00013829,2]
[424206136,1780665090000,-470.65922505,0.00013844,2]
[424206135,1780665090000,-6556.6936049,0.00013843,2]
[424206134,1780665090000,-166.66,0.00013836,2]
[424206131,1780665090000,-470.65922505,0.00013815,2]
[424206126,1780665090000,-1548.0,0.00013782,2]
[424206125,1780665090000,-470.65922505,0.00013772,2]
[424206118,1780665090000,-423.35354369,0.00013726,2]
[424206124,1780665090000,-150.0,0.00013772,2]
[424206123,1780665090000,-470.65922505,0.00013757,2]
[424206122,1780665090000,-10000.0,0.00013748,2]
[424206130,1780665090000,-470.65922505,0.000138,2]
[424206161,1780665091000,-150.0,0.00014,2]
[424206162,1780665091000,-150.0,0.00014,2]
[424206148,1780665091000,-163.58997543,0.0001391,2]
[424206159,1780665091000,-150.0,0.00014,2]
[424206147,1780665091000,-470.65922505,0.00013901,2]
[424206151,1780665091000,-470.65922505,0.00013944,2]
[424206173,1780665091000,-2000.0,0.00014,2]
[424206169,1780665091000,-2000.0,0.00014,2]
[424206172,1780665091000,-2000.0,0.00014,2]
[424206170,1780665091000,-2000.0,0.00014,2]
[424206167,1780665091000,-2000.0,0.00014,2]
[424206168,1780665091000,-2000.0,0.00014,2]
[424206158,1780665091000,-150.0,0.00014,2]
[424206165,1780665091000,-249.09,0.00014,2]
[424206166,1780665091000,-250.0,0.00014,2]
[424206145,1780665091000,-2000.0,0.0001388,2]
[424206164,1780665091000,-150.0,0.00014,2]
[424206157,1780665091000,-47798.280807,0.0001399,2]
[424206154,1780665091000,-166.66,0.00013973,2]
[424206150,1780665091000,-470.65922505,0.0001393,2]
[424206163,1780665091000,-150.0,0.00014,2]
[424206155,1780665091000,-470.65922505,0.00013973,2]
[424206152,1780665091000,-470.65922505,0.00013959,2]
[424206146,1780665091000,-470.65922505,0.00013887,2]
[424206156,1780665091000,-470.65922505,0.00013988,2]
[424206153,1780665091000,-150.0,0.00013962,2]
[424206144,1780665091000,-186.09789336,0.00013874,2]
[424206149,1780665091000,-470.65922505,0.00013916,2]
[424206143,1780665091000,-10000.0,0.00013873,2]
[424206171,1780665091000,-2000.0,0.00014,2]
[424206160,1780665091000,-150.0,0.00014,2]
[424206177,1780665091000,-2000.0,0.00014,2]
[424206195,1780665091000,-307.93,0.00014,2]
[424206187,1780665091000,-2000.0,0.00014,2]
[424206204,1780665091000,-470.65922505,0.00014059,2]
[424206181,1780665091000,-2000.0,0.00014,2]
[424206198,1780665091000,-470.65922505,0.00014016,2]
[424206206,1780665091000,-2000.0,0.0001408,2]
[424206203,1780665091000,-150.0,0.00014057,2]
[424206197,1780665091000,-470.65922505,0.00014002,2]
[424206199,1780665091000,-470.65922505,0.00014031,2]
[424206196,1780665091000,-3887.0,0.00014,2]
[424206202,1780665091000,-273.39674476,0.00014055,7]
[424206201,1780665091000,-470.65922505,0.00014045,2]
[424206200,1780665091000,-2351.0,0.00014035,2]
[424206207,1780665091000,-470.65922505,0.00014088,2]
[424206194,1780665091000,-2000.0,0.00014,2]
[424206189,1780665091000,-2000.0,0.00014,2]
[424206190,1780665091000,-1846.57,0.00014,2]
[424206205,1780665091000,-470.65922505,0.00014074,2]
[424206188,1780665091000,-2000.0,0.00014,2]
[424206191,1780665091000,-2000.0,0.00014,2]
[424206179,1780665091000,-2000.0,0.00014,2]
[424206186,1780665091000,-2000.0,0.00014,2]
[424206175,1780665091000,-2000.0,0.00014,2]
[424206185,1780665091000,-2000.0,0.00014,2]
[424206174,1780665091000,-2000.0,0.00014,2]
[424206178,1780665091000,-2000.0,0.00014,2]
[424206183,1780665091000,-1231.76,0.00014,2]
[424206182,1780665091000,-2000.0,0.00014,2]
[424206176,1780665091000,-2000.0,0.00014,2]
[424206184,1780665091000,-2000.0,0.00014,2]
[424206192,1780665091000,-2000.0,0.00014,2]
[424206193,1780665091000,-2000.0,0.00014,2]
[424206180,1780665091000,-2000.0,0.00014,2]
[424206225,1780665092000,-3553.0,0.00014141,2]
[424206235,1780665092000,-470.65922505,0.00014189,2]
[424206230,1780665092000,-1462.9960941,0.00014151,2]
[424206244,1780665092000,-152.0,0.00014212,2]
[424206238,1780665092000,-7623.8741327,0.00014209,2]
[424206248,1780665092000,-151.0,0.00014216,2]
[424206223,1780665092000,-250.0,0.00014141,2]
[424206224,1780665092000,-1373.834,0.00014141,2]
[424206228,1780665092000,-1227.0,0.00014141,2]
[424206237,1780665092000,-470.65922505,0.00014203,2]
[424206247,1780665092000,-1548.0,0.00014216,2]
[424206246,1780665092000,-1548.0,0.00014216,2]
[424206221,1780665092000,-250.0,0.00014141,2]
[424206222,1780665092000,-242.103,0.00014141,2]
[424206219,1780665092000,-174.0,0.00014141,2]
[424206208,1780665092000,-470.65922505,0.00014103,2]
[424206214,1780665092000,-150.0,0.00014141,2]
[424206211,1780665092000,-470.65922505,0.00014131,2]
[424206212,1780665092000,-2000.0,0.00014132,2]
[424206209,1780665092000,-166.66,0.0001411,2]
[424206218,1780665092000,-220.0,0.00014141,2]
[424206216,1780665092000,-200.0,0.00014141,2]
[424206217,1780665092000,-230.0,0.00014141,2]
[424206210,1780665092000,-470.65922505,0.00014117,2]
[424206213,1780665092000,-150.0,0.00014141,2]
[424206215,1780665092000,-200.0,0.00014141,2]
[424206245,1780665092000,-1548.0,0.00014216,2]
[424206220,1780665092000,-208.58,0.00014141,2]
[424206231,1780665092000,-150.0,0.00014152,2]
[424206243,1780665092000,-1548.0,0.00014212,2]
[424206239,1780665092000,-209.16717646,0.0001421,7]
[424206236,1780665092000,-2684.06312873,0.0001419,2]
[424206252,1780665092000,-470.65922505,0.00014218,2]
[424206249,1780665092000,-151.0,0.00014216,2]
[424206259,1780665092000,-151.0,0.0001425,2]
[424206264,1780665092000,-6111.0,0.0001436,2]
[424206254,1780665092000,-166.66,0.00014247,2]
[424206263,1780665092000,-15000.0,0.00014304,2]
[424206256,1780665092000,-470.65922505,0.00014247,2]
[424206251,1780665092000,-151.0,0.00014216,2]
[424206266,1780665092000,-163.58997543,0.00014405,2]
[424206267,1780665092000,-1000.0,0.0001441,2]
[424206262,1780665092000,-15000.0,0.00014295,2]
[424206253,1780665092000,-470.65922505,0.00014232,2]
[424206255,1780665092000,-237.29286515,0.00014247,2]
[424206265,1780665092000,-166.66,0.00014384,2]
[424206260,1780665092000,-151.0,0.00014278,2]
[424206250,1780665092000,-151.0,0.00014216,2]
[424206242,1780665092000,-1548.0,0.00014212,2]
[424206240,1780665092000,-1548.0,0.00014212,2]
[424206232,1780665092000,-470.65922505,0.0001416,2]
[424206226,1780665092000,-1278.961,0.00014141,2]
[424206227,1780665092000,-437.0,0.00014141,2]
[424206233,1780665092000,-206.6924006,0.0001416,2]
[424206234,1780665092000,-470.65922505,0.00014175,2]
[424206261,1780665092000,-2000.0,0.0001428,2]
[424206241,1780665092000,-1548.0,0.00014212,2]
[424206258,1780665092000,-151.0,0.0001425,2]
[424206229,1780665092000,-470.65922505,0.00014146,2]
[424206257,1780665092000,-531964.0039935,0.0001425,2]
[424206277,1780665093000,-2000.0,0.0001448,2]
[424206280,1780665093000,-10329.28,0.00014504,2]
[424206288,1780665093000,-1548.0,0.0001451,2]
[424206294,1780665093000,-151.41292883,0.00014564,2]
[424206284,1780665093000,-19816.59,0.00014504,2]
[424206285,1780665093000,-7661.72,0.00014504,2]
[424206290,1780665093000,-2684.06312873,0.00014545,2]
[424206296,1780665093000,-433.0,0.00014671,2]
[424206283,1780665093000,-12852.43,0.00014504,2]
[424206292,1780665093000,-1548.0,0.00014557,2]
[424206291,1780665093000,-500.0,0.00014548,2]
[424206278,1780665093000,-166.67,0.00014482,2]
[424206269,1780665093000,-192509.1673599,0.00014438,2]
[424206281,1780665093000,-1560.86,0.00014504,2]
[424206279,1780665093000,-150.99,0.00014504,2]
[424206272,1780665093000,-4863.3511928,0.00014441,2]
[424206275,1780665093000,-273.39674476,0.00014457,7]
[424206273,1780665093000,-225514.595296,0.00014444,2]
[424206270,1780665093000,-57467.8759679,0.00014438,2]
[424206276,1780665093000,-10000.0,0.00014479,2]
[424206268,1780665093000,-151.0,0.00014436,2]
[424206271,1780665093000,-35809.8797668,0.00014438,2]
[424206274,1780665093000,-6507.8672746,0.00014446,2]
[424206287,1780665093000,-1548.0,0.0001451,2]
[424206282,1780665093000,-4999.99,0.00014504,2]
[424206289,1780665093000,-6111.0,0.00014521,2]
[424206286,1780665093000,-46621.05,0.00014504,2]
[424206295,1780665093000,-10000.0,0.0001467,2]
[424206300,1780665093000,-1000.0,0.000147,5]
[424206293,1780665093000,-152.0,0.00014557,2]
[424206301,1780665093000,-629.0,0.00014702,2]
[424206316,1780665093000,-376.0,0.00014758,2]
[424206314,1780665093000,-386.0,0.0001475,2]
[424206317,1780665093000,-369.0,0.00014759,2]
[424206319,1780665093000,-375.0,0.0001477,2]
[424206315,1780665093000,-510.0,0.00014754,2]
[424206305,1780665093000,-1548.0,0.00014731,2]
[424206308,1780665093000,-375.0,0.00014733,2]
[424206307,1780665093000,-510.0,0.00014732,2]
[424206298,1780665093000,-9950.14701778,0.000147,2]
[424206306,1780665093000,-510.0,0.00014731,2]
[424206318,1780665093000,-386.0,0.00014759,2]
[424206312,1780665093000,-390.0,0.00014749,2]
[424206297,1780665093000,-166.67,0.00014692,2]
[424206299,1780665093000,-2300.0,0.000147,5]
[424206303,1780665093000,-544.0,0.00014727,2]
[424206309,1780665093000,-510.0,0.00014734,2]
[424206313,1780665093000,-372.0,0.00014749,2]
[424206322,1780665093000,-166.90124495,0.00014776,2]
[424206310,1780665093000,-386.0,0.00014735,2]
[424206302,1780665093000,-543.0,0.00014702,2]
[424206321,1780665093000,-376.0,0.00014774,2]
[424206320,1780665093000,-510.0,0.00014772,2]
[424206304,1780665093000,-456.0,0.0001473,2]
[424206311,1780665093000,-390.0,0.00014747,2]
[424206343,1780665094000,-745.11,0.000148,2]
[424206349,1780665094000,-2587.18,0.000148,2]
[424206334,1780665094000,-2638.92,0.000148,2]
[424206335,1780665094000,-2638.92,0.000148,2]
[424206348,1780665094000,-2587.18,0.000148,2]
[424206350,1780665094000,-2587.18,0.000148,2]
[424206338,1780665094000,-186.27,0.000148,2]
[424206357,1780665094000,-390.0,0.00014809,2]
[424206337,1780665094000,-186.27,0.000148,2]
[424206344,1780665094000,-745.11,0.000148,2]
[424206323,1780665094000,-510.0,0.00014777,2]
[424206360,1780665094000,-1548.0,0.00014815,2]
[424206333,1780665094000,-2638.92,0.000148,2]
[424206361,1780665094000,-510.0,0.00014818,2]
[424206356,1780665094000,-390.0,0.00014805,2]
[424206359,1780665094000,-1548.0,0.00014815,2]
[424206353,1780665094000,-1000.0,0.000148,5]
[424206342,1780665094000,-745.11,0.000148,2]
[424206328,1780665094000,-390.0,0.00014799,2]
[424206329,1780665094000,-1023.63214271,0.00014799,5]
[424206340,1780665094000,-186.27,0.000148,2]
[424206327,1780665094000,-386.0,0.00014797,2]
[424206336,1780665094000,-2638.94,0.000148,2]
[424206339,1780665094000,-186.27,0.000148,2]
[424206347,1780665094000,-2587.18,0.000148,2]
[424206341,1780665094000,-186.3,0.000148,2]
[424206345,1780665094000,-745.11,0.000148,2]
[424206351,1780665094000,-2587.22,0.000148,2]
[424206354,1780665094000,-510.0,0.00014801,2]
[424206355,1780665094000,-390.0,0.00014801,2]
[424206330,1780665094000,-386.0,0.000148,2]
[424206332,1780665094000,-2638.92,0.000148,2]
[424206352,1780665094000,-2300.0,0.000148,5]
[424206378,1780665094000,-390.0,0.00014842,2]
[424206324,1780665094000,-510.0,0.00014779,2]
[424206380,1780665094000,-510.0,0.00014854,2]
[424206379,1780665094000,-376.0,0.00014843,2]
[424206386,1780665094000,-50319.1077642,0.00014868,2]
[424206390,1780665094000,-510.0,0.0001488,2]
[424206376,1780665094000,-510.0,0.0001484,2]
[424206387,1780665094000,-1452.1014672,0.00014869,2]
[424206372,1780665094000,-376.0,0.00014832,2]
[424206385,1780665094000,-1085.1603305,0.00014867,2]
[424206389,1780665094000,-390.0,0.00014875,2]
[424206381,1780665094000,-42954.601343,0.00014867,2]
[424206383,1780665094000,-7990.2642072,0.00014867,2]
[424206382,1780665094000,-12822.8163681,0.00014867,2]
[424206377,1780665094000,-376.0,0.00014841,2]
[424206362,1780665094000,-390.0,0.0001482,2]
[424206384,1780665094000,-376.0,0.00014867,2]
[424206371,1780665094000,-510.0,0.00014832,2]
[424206388,1780665094000,-510.0,0.00014875,2]
[424206368,1780665094000,-386.0,0.00014828,2]
[424206366,1780665094000,-510.0,0.00014827,2]
[424206358,1780665094000,-390.0,0.00014814,2]
[424206325,1780665094000,-390.0,0.00014783,2]
[424206331,1780665094000,-151.0,0.000148,2]
[424206346,1780665094000,-745.11,0.000148,2]
[424206365,1780665094000,-390.0,0.00014826,2]
[424206374,1780665094000,-390.0,0.00014833,2]
[424206326,1780665094000,-510.0,0.00014786,2]
[424206367,1780665094000,-166.67,0.00014827,2]
[424206370,1780665094000,-386.0,0.00014831,2]
[424206369,1780665094000,-386.0,0.00014829,2]
[424206373,1780665094000,-510.0,0.00014833,2]
[424206375,1780665094000,-390.0,0.00014834,2]
[424206363,1780665094000,-380.0,0.0001482,2]
[424206364,1780665094000,-510.0,0.00014825,2]
[424206396,1780665095000,-390.0,0.00014895,2]
[424206395,1780665095000,-390.0,0.00014893,2]
[424206397,1780665095000,-386.0,0.00014895,2]
[424206402,1780665095000,-25000.0,0.000149,3]
[424206408,1780665095000,-808.43136146,0.000149,2]
[424206417,1780665095000,-383.0,0.00014934,2]
[424206421,1780665095000,-390.0,0.00014943,2]
[424206415,1780665095000,-376.0,0.0001492,2]
[424206420,1780665095000,-390.0,0.0001494,2]
[424206416,1780665095000,-390.0,0.00014933,2]
[424206418,1780665095000,-10000.0,0.00014936,2]
[424206412,1780665095000,-375.0,0.00014913,2]
[424206400,1780665095000,-163.58997543,0.000149,2]
[424206407,1780665095000,-230.99309568,0.000149,2]
[424206392,1780665095000,-390.0,0.00014885,2]
[424206410,1780665095000,-376.0,0.0001491,2]
[424206399,1780665095000,-700.0,0.000149,4]
[424206394,1780665095000,-25000.0,0.00014891,3]
[424206405,1780665095000,-230.9930957,0.000149,2]
[424206403,1780665095000,-2684.06312873,0.000149,2]
[424206406,1780665095000,-1000.0,0.000149,5]
[424206411,1780665095000,-386.0,0.00014912,2]
[424206401,1780665095000,-25000.0,0.000149,3]
[424206393,1780665095000,-386.0,0.00014887,2]
[424206413,1780665095000,-510.0,0.00014919,2]
[424206404,1780665095000,-2300.0,0.000149,5]
[424206409,1780665095000,-386.0,0.00014902,2]
[424206391,1780665095000,-500.0,0.00014882,9]